[Event "Titled Tuesday Blitz November 15 Early 2022"]
[White "Biastoch, Bennet"]
[Black "Novikova, Galina"]
[WhiteFideId "12939889"]
[BlackFideId "4157095"]
[WhiteElo "2221"]
[BlackElo "1973"]
[Result "1-0"]
[Round "06"]
[TimeControl "180+1"]
[Date "2022.11.16"]
[WhiteClock "0:00:20"]
[BlackClock "0:00:11"]

1. Nf3 {[%clk 0:03:00]}  e6 {[%clk 0:03:00]} 2. g3 {[%clk 0:03:00]}  d5 {[%clk 0:03:01]} 3. Bg2 {[%clk 0:03:01]}  c6 {[%clk 0:03:02]} 4. d3 {[%clk 0:03:01]}  Nf6 {[%clk 0:03:03]} 5. O-O {[%clk 0:03:01]}  Be7 {[%clk 0:03:04]} 6. Nc3 {[%clk 0:03:00]}  O-O {[%clk 0:03:05]} 7. e4 {[%clk 0:03:01]}  b6 {[%clk 0:03:03]} 8. Bf4 {[%clk 0:02:58]}  Bb7 {[%clk 0:03:03]} 9. e5 {[%clk 0:02:58]}  Nfd7 {[%clk 0:03:03]} 10. a4 {[%clk 0:02:55]}  a6 {[%clk 0:02:59]} 11. h4 {[%clk 0:02:50]}  c5 {[%clk 0:02:59]} 12. Ne2 {[%clk 0:02:47]}  Nc6 {[%clk 0:02:58]} 13. c3 {[%clk 0:02:47]}  b5 {[%clk 0:02:51]} 14. d4 {[%clk 0:02:45]}  cxd4 {[%clk 0:02:39]} 15. Nexd4 {[%clk 0:02:43]}  Nxd4 {[%clk 0:02:36]} 16. Nxd4 {[%clk 0:02:43]}  bxa4 {[%clk 0:02:32]} 17. Qxa4 {[%clk 0:02:36]}  Nc5 {[%clk 0:02:32]} 18. Qc2 {[%clk 0:02:34]}  Rc8 {[%clk 0:02:20]} 19. Ra2 {[%clk 0:02:29]}  Ne4 {[%clk 0:02:15]} 20. Rfa1 {[%clk 0:02:21]}  Qb6 {[%clk 0:02:14]} 21. Qe2 {[%clk 0:02:15]}  h6 {[%clk 0:02:06]} 22. Be3 {[%clk 0:02:15]}  Qc7 {[%clk 0:02:04]} 23. Bf4 {[%clk 0:02:08]}  Bc5 {[%clk 0:02:00]} 24. Bxe4 {[%clk 0:01:35]}  dxe4 {[%clk 0:02:00]} 25. Nc2 {[%clk 0:01:35]}  e3 {[%clk 0:01:58]} 26. fxe3 {[%clk 0:01:27]}  Qc6 {[%clk 0:01:55]} 27. Kh2 {[%clk 0:01:27]}  Qe4 {[%clk 0:00:59]} 28. Ra4 {[%clk 0:01:21]}  Qc6 {[%clk 0:00:46]} 29. Nd4 {[%clk 0:01:19]}  Qd5 {[%clk 0:00:45]} 30. Ra5 {[%clk 0:01:10]}  Qd7 {[%clk 0:00:37]} 31. Qg4 {[%clk 0:00:50]}  Kh8 {[%clk 0:00:37]} 32. Qh5 {[%clk 0:00:47]}  Qd5 {[%clk 0:00:36]} 33. Qe2 {[%clk 0:00:37]}  Qd7 {[%clk 0:00:36]} 34. Qh5 {[%clk 0:00:29]}  Rfd8 {[%clk 0:00:29]} 35. Qe2 {[%clk 0:00:26]}  Bb6 {[%clk 0:00:28]} 36. Rxa6 {[%clk 0:00:25]}  Bxd4 {[%clk 0:00:22]} 37. exd4 {[%clk 0:00:25]}  Bxa6 {[%clk 0:00:22]} 38. Rxa6 {[%clk 0:00:25]}  Rb8 {[%clk 0:00:22]} 39. b4 {[%clk 0:00:23]}  Qc8 {[%clk 0:00:20]} 40. Ra7 {[%clk 0:00:22]}  Qxc3 {[%clk 0:00:19]} 41. Rxf7 {[%clk 0:00:20]}  Rxb4 {[%clk 0:00:19]} 42. Qg4 {[%clk 0:00:20]}  Rb2+ {[%clk 0:00:19]} 43. Kh3 {[%clk 0:00:20]}  Rg8 {[%clk 0:00:14]} 44. Bxh6 {[%clk 0:00:20]}  gxh6 {[%clk 0:00:12]} 45. Qf4 {[%clk 0:00:20]}  Qd2 {[%clk 0:00:11]} 46. Qf6+ {[%clk 0:00:20]} 1-0


[Site "https://www.chess.com"]

[Event "Titled Tuesday Blitz November 15 Early 2022"]
[White "Bluebaum, Matthias"]
[Black "Pakleza, Zbigniew"]
[WhiteFideId "24651516"]
[BlackFideId "1119290"]
[WhiteElo "2633"]
[BlackElo "2411"]
[Result "1/2-1/2"]
[Round "06"]
[TimeControl "180+1"]
[Date "2022.11.15"]
[WhiteClock "0:00:11"]
[BlackClock "0:00:04"]

1. d4 {[%clk 0:03:00]}  d5 {[%clk 0:02:58]} 2. c4 {[%clk 0:03:01]}  c6 {[%clk 0:02:59]} 3. Nc3 {[%clk 0:03:01]}  Nf6 {[%clk 0:03:00]} 4. Nf3 {[%clk 0:03:01]}  Qb6 {[%clk 0:03:00]} 5. Qc2 {[%clk 0:03:00]}  Na6 {[%clk 0:02:54]} 6. a3 {[%clk 0:02:58]}  g6 {[%clk 0:02:44]} 7. Bg5 {[%clk 0:02:44]}  Bf5 {[%clk 0:02:30]} 8. Qc1 {[%clk 0:02:44]}  Bg7 {[%clk 0:02:25]} 9. Bxf6 {[%clk 0:02:31]}  Bxf6 {[%clk 0:02:26]} 10. cxd5 {[%clk 0:02:31]}  Bxd4 {[%clk 0:01:54]} 11. Nxd4 {[%clk 0:02:31]}  Qxd4 {[%clk 0:01:55]} 12. e3 {[%clk 0:02:31]}  Qb6 {[%clk 0:01:52]} 13. e4 {[%clk 0:02:24]}  Bd7 {[%clk 0:01:40]} 14. Be2 {[%clk 0:02:24]}  Nc5 {[%clk 0:01:36]} 15. Qe3 {[%clk 0:02:09]}  Nb3 {[%clk 0:01:25]} 16. Qxb6 {[%clk 0:02:07]}  axb6 {[%clk 0:01:26]} 17. Rd1 {[%clk 0:02:07]}  c5 {[%clk 0:01:26]} 18. O-O {[%clk 0:02:00]}  Nd4 {[%clk 0:01:26]} 19. Rfe1 {[%clk 0:01:44]}  e5 {[%clk 0:01:18]} 20. dxe6 {[%clk 0:01:38]}  Bxe6 {[%clk 0:01:14]} 21. Nb5 {[%clk 0:01:34]}  Nxb5 {[%clk 0:01:12]} 22. Bxb5+ {[%clk 0:01:35]}  Ke7 {[%clk 0:01:12]} 23. f4 {[%clk 0:01:32]}  Rhd8 {[%clk 0:01:09]} 24. Kf2 {[%clk 0:01:31]}  Bb3 {[%clk 0:01:03]} 25. Rxd8 {[%clk 0:01:24]}  Rxd8 {[%clk 0:01:03]} 26. Ke3 {[%clk 0:01:25]}  Rd4 {[%clk 0:00:57]} 27. Re2 {[%clk 0:01:21]}  Bc4 {[%clk 0:00:47]} 28. Bxc4 {[%clk 0:01:09]}  Rxc4 {[%clk 0:00:48]} 29. Rd2 {[%clk 0:01:03]}  b5 {[%clk 0:00:47]} 30. Kf3 {[%clk 0:00:52]}  b4 {[%clk 0:00:44]} 31. axb4 {[%clk 0:00:48]}  Rxb4 {[%clk 0:00:45]} 32. e5 {[%clk 0:00:49]}  b5 {[%clk 0:00:29]} 33. Kg4 {[%clk 0:00:49]}  h6 {[%clk 0:00:23]} 34. h4 {[%clk 0:00:49]}  h5+ {[%clk 0:00:20]} 35. Kg5 {[%clk 0:00:36]}  Rb3 {[%clk 0:00:20]} 36. f5 {[%clk 0:00:37]}  Rg3+ {[%clk 0:00:20]} 37. Kh6 {[%clk 0:00:37]}  gxf5 {[%clk 0:00:21]} 38. Kxh5 {[%clk 0:00:38]}  Ke6 {[%clk 0:00:18]} 39. Kh6 {[%clk 0:00:32]}  c4 {[%clk 0:00:17]} 40. h5 {[%clk 0:00:32]}  Kxe5 {[%clk 0:00:14]} 41. Kh7 {[%clk 0:00:32]}  b4 {[%clk 0:00:13]} 42. h6 {[%clk 0:00:32]}  c3 {[%clk 0:00:12]} 43. bxc3 {[%clk 0:00:33]}  bxc3 {[%clk 0:00:13]} 44. Rf2 {[%clk 0:00:27]}  Kd4 {[%clk 0:00:03]} 45. Kh8 {[%clk 0:00:27]}  Kd3 {[%clk 0:00:03]} 46. h7 {[%clk 0:00:11]}  Rg5 {[%clk 0:00:03]} 47. Rf1 {[%clk 0:00:11]}  c2 {[%clk 0:00:03]} 48. g4 {[%clk 0:00:10]}  Kd2 {[%clk 0:00:02]} 49. Rf2+ {[%clk 0:00:10]}  Kc3 {[%clk 0:00:02]} 50. Rf3+ {[%clk 0:00:11]}  Kb2 {[%clk 0:00:03]} 51. Rf2 {[%clk 0:00:10]}  Kb1 {[%clk 0:00:03]} 52. Rxf5 {[%clk 0:00:07]}  Rxf5 {[%clk 0:00:02]} 53. gxf5 {[%clk 0:00:08]}  c1=Q {[%clk 0:00:03]} 54. f6 {[%clk 0:00:09]}  Qf4 {[%clk 0:00:03]} 55. Kg7 {[%clk 0:00:09]}  Qg5+ {[%clk 0:00:02]} 56. Kxf7 {[%clk 0:00:10]}  Qh6 {[%clk 0:00:03]} 57. Kg8 {[%clk 0:00:08]}  Qg6+ {[%clk 0:00:03]} 58. Kh8 {[%clk 0:00:07]}  Qxf6+ {[%clk 0:00:04]} 59. Kg8 {[%clk 0:00:07]}  Qg5+ {[%clk 0:00:04]} 60. Kh8 {[%clk 0:00:07]}  Qe5+ {[%clk 0:00:04]} 61. Kg8 {[%clk 0:00:08]}  Qg3+ {[%clk 0:00:04]} 62. Kh8 {[%clk 0:00:09]}  Qh4 {[%clk 0:00:03]} 63. Kg8 {[%clk 0:00:09]}  Qd8+ {[%clk 0:00:03]} 64. Kg7 {[%clk 0:00:10]}  Qe7+ {[%clk 0:00:03]} 65. Kg8 {[%clk 0:00:10]}  Qxh7+ {[%clk 0:00:04]} 66. Kxh7 {[%clk 0:00:11]} 1/2-1/2


[Site "https://www.chess.com"]

[Event "Titled Tuesday Blitz November 15 Early 2022"]
[White "Bortnyk, Olexandr"]
[Black "Jones, Gawain C B"]
[WhiteFideId "14120828"]
[BlackFideId "409561"]
[WhiteElo "2723"]
[BlackElo "2657"]
[Result "0-1"]
[Round "06"]
[TimeControl "180+1"]
[Date "2022.11.15"]
[WhiteClock "0:00:01"]
[BlackClock "0:00:04"]

1. e4 {[%clk 0:02:59]}  e5 {[%clk 0:02:59]} 2. Nf3 {[%clk 0:02:58]}  Nc6 {[%clk 0:02:59]} 3. Bb5 {[%clk 0:02:58]}  a6 {[%clk 0:03:00]} 4. Ba4 {[%clk 0:02:57]}  Nf6 {[%clk 0:03:00]} 5. Qe2 {[%clk 0:02:57]}  b5 {[%clk 0:02:59]} 6. Bb3 {[%clk 0:02:57]}  Bc5 {[%clk 0:02:59]} 7. c3 {[%clk 0:02:57]}  O-O {[%clk 0:02:59]} 8. d3 {[%clk 0:02:58]}  h6 {[%clk 0:02:57]} 9. h3 {[%clk 0:02:57]}  d5 {[%clk 0:02:56]} 10. Nbd2 {[%clk 0:02:57]}  Be6 {[%clk 0:02:55]} 11. O-O {[%clk 0:02:57]}  Re8 {[%clk 0:02:53]} 12. Rd1 {[%clk 0:02:57]}  Bb6 {[%clk 0:02:47]} 13. Nf1 {[%clk 0:02:57]}  dxe4 {[%clk 0:02:42]} 14. dxe4 {[%clk 0:02:56]}  Qe7 {[%clk 0:02:43]} 15. Ng3 {[%clk 0:02:53]}  Bxb3 {[%clk 0:02:38]} 16. axb3 {[%clk 0:02:54]}  Na5 {[%clk 0:02:39]} 17. Ra3 {[%clk 0:02:26]}  Qe6 {[%clk 0:02:31]} 18. Qc2 {[%clk 0:01:56]}  Red8 {[%clk 0:02:16]} 19. Rxd8+ {[%clk 0:01:47]}  Rxd8 {[%clk 0:02:16]} 20. Kh2 {[%clk 0:01:41]}  Qd6 {[%clk 0:02:01]} 21. b4 {[%clk 0:01:38]}  Nc4 {[%clk 0:01:58]} 22. Rxa6 {[%clk 0:01:32]}  Qd1 {[%clk 0:01:56]} 23. Qxd1 {[%clk 0:01:32]}  Rxd1 {[%clk 0:01:57]} 24. b3 {[%clk 0:01:33]}  Rxc1 {[%clk 0:01:47]} 25. bxc4 {[%clk 0:01:32]}  bxc4 {[%clk 0:01:45]} 26. Nxe5 {[%clk 0:01:21]}  Bxf2 {[%clk 0:01:42]} 27. Ne2 {[%clk 0:01:17]}  Rc2 {[%clk 0:01:38]} 28. Nd4 {[%clk 0:01:01]}  Rxc3 {[%clk 0:01:32]} 29. Nf5 {[%clk 0:01:00]}  Nxe4 {[%clk 0:01:24]} 30. Rc6 {[%clk 0:00:45]}  Ng3 {[%clk 0:00:59]} 31. Ne7+ {[%clk 0:00:34]}  Kf8 {[%clk 0:00:48]} 32. Rxc7 {[%clk 0:00:26]}  Rc1 {[%clk 0:00:45]} 33. N7g6+ {[%clk 0:00:04]}  fxg6 {[%clk 0:00:36]} 34. Rf7+ {[%clk 0:00:05]}  Ke8 {[%clk 0:00:31]} 35. Rxf2 {[%clk 0:00:06]}  Nf1+ {[%clk 0:00:29]} 36. Kg1 {[%clk 0:00:06]}  Ne3+ {[%clk 0:00:26]} 37. Kh2 {[%clk 0:00:06]}  c3 {[%clk 0:00:21]} 38. Re2 {[%clk 0:00:07]}  Nf1+ {[%clk 0:00:20]} 39. Kg1 {[%clk 0:00:07]}  Ng3+ {[%clk 0:00:20]} 40. Kf2 {[%clk 0:00:08]}  Nxe2 {[%clk 0:00:20]} 41. Kxe2 {[%clk 0:00:08]}  c2 {[%clk 0:00:21]} 42. Kd2 {[%clk 0:00:06]}  Rg1 {[%clk 0:00:15]} 43. Kxc2 {[%clk 0:00:06]}  Rxg2+ {[%clk 0:00:16]} 44. Kd3 {[%clk 0:00:06]}  Rg3+ {[%clk 0:00:16]} 45. Kd4 {[%clk 0:00:06]}  Rxh3 {[%clk 0:00:17]} 46. b5 {[%clk 0:00:06]}  g5 {[%clk 0:00:09]} 47. b6 {[%clk 0:00:05]}  Kd8 {[%clk 0:00:09]} 48. Kc5 {[%clk 0:00:05]}  Kc8 {[%clk 0:00:09]} 49. Nf7 {[%clk 0:00:04]}  Rc3+ {[%clk 0:00:09]} 50. Kb5 {[%clk 0:00:03]}  Rc1 {[%clk 0:00:09]} 51. Ka6 {[%clk 0:00:02]}  Ra1+ {[%clk 0:00:08]} 52. Kb5 {[%clk 0:00:02]}  Rb1+ {[%clk 0:00:08]} 53. Kc6 {[%clk 0:00:02]}  Rc1+ {[%clk 0:00:08]} 54. Kb5 {[%clk 0:00:03]}  g4 {[%clk 0:00:08]} 55. Nd6+ {[%clk 0:00:02]}  Kb8 {[%clk 0:00:08]} 56. Nf5 {[%clk 0:00:02]}  h5 {[%clk 0:00:07]} 57. Ka6 {[%clk 0:00:02]}  Ra1+ {[%clk 0:00:07]} 58. Kb5 {[%clk 0:00:02]}  Rf1 {[%clk 0:00:05]} 59. Nd4 {[%clk 0:00:01]}  Rb1+ {[%clk 0:00:04]} 60. Ka6 {[%clk 0:00:01]}  Ra1+ {[%clk 0:00:04]} 61. Kb5 {[%clk 0:00:02]}  g3 {[%clk 0:00:04]} 62. Nc6+ {[%clk 0:00:02]}  Ka8 {[%clk 0:00:05]} 63. Nd8 {[%clk 0:00:01]}  g2 {[%clk 0:00:04]} 64. Kc6 {[%clk 0:00:01]}  Rc1+ {[%clk 0:00:04]} 0-1


[Site "https://www.chess.com"]

[Event "Titled Tuesday Blitz November 15 Early 2022"]
[White "Buscar, Michael"]
[Black "Tan, Jun Ying"]
[WhiteFideId "2603616"]
[BlackFideId "5710413"]
[WhiteElo "2010"]
[BlackElo "2089"]
[Result "0-1"]
[Round "06"]
[TimeControl "180+1"]
[Date "2022.11.16"]
[WhiteClock "0:00:38"]
[BlackClock "0:01:43"]

1. d4 {[%clk 0:03:00]}  d5 {[%clk 0:02:57]} 2. c4 {[%clk 0:03:00]}  Bf5 {[%clk 0:02:58]} 3. Nc3 {[%clk 0:02:59]}  e6 {[%clk 0:02:58]} 4. Nf3 {[%clk 0:02:59]}  Nc6 {[%clk 0:02:58]} 5. Bf4 {[%clk 0:02:55]}  Nf6 {[%clk 0:02:55]} 6. e3 {[%clk 0:02:55]}  Bd6 {[%clk 0:02:53]} 7. Ne5 {[%clk 0:02:53]}  O-O {[%clk 0:02:52]} 8. g4 {[%clk 0:02:40]}  Bg6 {[%clk 0:02:51]} 9. h4 {[%clk 0:02:37]}  h6 {[%clk 0:02:43]} 10. Nxg6 {[%clk 0:02:19]}  fxg6 {[%clk 0:02:42]} 11. Bxd6 {[%clk 0:02:20]}  Qxd6 {[%clk 0:02:41]} 12. c5 {[%clk 0:02:13]}  Qd7 {[%clk 0:02:34]} 13. Bd3 {[%clk 0:02:02]}  e5 {[%clk 0:02:31]} 14. Bxg6 {[%clk 0:01:54]}  exd4 {[%clk 0:02:30]} 15. Bf5 {[%clk 0:01:52]}  Qe7 {[%clk 0:02:28]} 16. Ne2 {[%clk 0:01:30]}  dxe3 {[%clk 0:02:27]} 17. f4 {[%clk 0:01:28]}  Qxc5 {[%clk 0:02:20]} 18. Rc1 {[%clk 0:01:08]}  Qa5+ {[%clk 0:01:58]} 19. Kf1 {[%clk 0:01:06]}  Ne4 {[%clk 0:01:58]} 20. Bxe4 {[%clk 0:01:03]}  dxe4 {[%clk 0:01:58]} 21. Qb3+ {[%clk 0:01:00]}  Kh8 {[%clk 0:01:56]} 22. Qxb7 {[%clk 0:01:00]}  Qd2 {[%clk 0:01:49]} 23. f5 {[%clk 0:00:43]}  Nd4 {[%clk 0:01:45]} 24. Re1 {[%clk 0:00:38]}  Nxe2 {[%clk 0:01:43]} 25. Rxe2 {[%clk 0:00:38]}  Qd1+ {[%clk 0:01:43]} 0-1


[Site "https://www.chess.com"]

[Event "Titled Tuesday Blitz November 15 Early 2022"]
[White "Calcada, Lucas Galvan"]
[Black "Rose, Felix"]
[WhiteFideId "22746099"]
[BlackFideId "5105722"]
[WhiteElo "1523"]
[BlackElo "2039"]
[Result "0-1"]
[Round "06"]
[TimeControl "180+1"]
[Date "2022.11.16"]
[WhiteClock "0:00:05"]
[BlackClock "0:00:14"]

1. e4 {[%clk 0:03:00]}  e5 {[%clk 0:02:59]} 2. Nf3 {[%clk 0:02:59]}  Nc6 {[%clk 0:03:00]} 3. Bb5 {[%clk 0:02:58]}  a6 {[%clk 0:03:00]} 4. Ba4 {[%clk 0:02:54]}  Nf6 {[%clk 0:03:00]} 5. d3 {[%clk 0:02:52]}  b5 {[%clk 0:02:58]} 6. Bb3 {[%clk 0:02:48]}  Bc5 {[%clk 0:02:58]} 7. c3 {[%clk 0:02:45]}  Bb7 {[%clk 0:02:52]} 8. O-O {[%clk 0:02:43]}  h6 {[%clk 0:02:50]} 9. d4 {[%clk 0:02:43]}  exd4 {[%clk 0:02:47]} 10. cxd4 {[%clk 0:02:44]}  Bb6 {[%clk 0:02:47]} 11. e5 {[%clk 0:02:44]}  Ne4 {[%clk 0:02:45]} 12. Re1 {[%clk 0:02:41]}  Na5 {[%clk 0:02:32]} 13. Bc2 {[%clk 0:02:39]}  Ng5 {[%clk 0:02:32]} 14. Nbd2 {[%clk 0:02:14]}  Qe7 {[%clk 0:02:17]} 15. Qe2 {[%clk 0:01:58]}  Nc6 {[%clk 0:02:02]} 16. d5 {[%clk 0:01:49]}  Nb4 {[%clk 0:01:58]} 17. d6 {[%clk 0:01:15]}  cxd6 {[%clk 0:01:28]} 18. exd6 {[%clk 0:01:16]}  Qxe2 {[%clk 0:01:28]} 19. Rxe2+ {[%clk 0:01:13]}  Kd8 {[%clk 0:01:25]} 20. Nxg5 {[%clk 0:01:04]}  hxg5 {[%clk 0:01:22]} 21. Nf1 {[%clk 0:01:02]}  f6 {[%clk 0:01:13]} 22. Bf5 {[%clk 0:00:58]}  Re8 {[%clk 0:01:06]} 23. Be3 {[%clk 0:00:57]}  Bc5 {[%clk 0:00:57]} 24. Bxc5 {[%clk 0:00:49]}  Rxe2 {[%clk 0:00:57]} 25. Bxb4 {[%clk 0:00:49]}  Rxb2 {[%clk 0:00:56]} 26. Bc3 {[%clk 0:00:42]}  Re2 {[%clk 0:00:52]} 27. Bg6 {[%clk 0:00:39]}  Be4 {[%clk 0:00:39]} 28. Ba5+ {[%clk 0:00:28]}  Kc8 {[%clk 0:00:40]} 29. Rc1+ {[%clk 0:00:27]}  Kb8 {[%clk 0:00:38]} 30. Bxe4 {[%clk 0:00:24]}  Rxe4 {[%clk 0:00:39]} 31. Ne3 {[%clk 0:00:24]}  Ra4 {[%clk 0:00:34]} 32. Bb6 {[%clk 0:00:23]}  Rxa2 {[%clk 0:00:32]} 33. Nd5 {[%clk 0:00:23]}  Rd2 {[%clk 0:00:28]} 34. Nc7 {[%clk 0:00:19]}  Rxd6 {[%clk 0:00:22]} 35. Nxa8 {[%clk 0:00:18]}  Kxa8 {[%clk 0:00:23]} 36. Be3 {[%clk 0:00:15]}  a5 {[%clk 0:00:21]} 37. Ra1 {[%clk 0:00:15]}  a4 {[%clk 0:00:21]} 38. Rb1 {[%clk 0:00:14]}  Rd5 {[%clk 0:00:19]} 39. g3 {[%clk 0:00:14]}  Kb7 {[%clk 0:00:19]} 40. Kg2 {[%clk 0:00:14]}  Kc6 {[%clk 0:00:20]} 41. Kf3 {[%clk 0:00:14]}  a3 {[%clk 0:00:21]} 42. Ke4 {[%clk 0:00:12]}  f5+ {[%clk 0:00:18]} 43. Kf3 {[%clk 0:00:11]}  g4+ {[%clk 0:00:17]} 44. Ke2 {[%clk 0:00:11]}  g6 {[%clk 0:00:11]} 45. Rc1+ {[%clk 0:00:11]}  Kb7 {[%clk 0:00:11]} 46. Ra1 {[%clk 0:00:11]}  b4 {[%clk 0:00:12]} 47. Rb1 {[%clk 0:00:11]}  Rb5 {[%clk 0:00:12]} 48. Kd3 {[%clk 0:00:09]}  a2 {[%clk 0:00:12]} 49. Ra1 {[%clk 0:00:08]}  b3 {[%clk 0:00:12]} 50. Bd4 {[%clk 0:00:06]}  b2 {[%clk 0:00:13]} 51. Bxb2 {[%clk 0:00:05]}  Rxb2 {[%clk 0:00:14]} 0-1


[Site "https://www.chess.com"]

[Event "Titled Tuesday Blitz November 15 Early 2022"]
[White "Callejas Rojas, Francisco Miguel"]
[Black "Simonovic, Miroslav"]
[WhiteFideId "32072503"]
[BlackFideId "919152"]
[WhiteElo "2274"]
[BlackElo "2043"]
[Result "1-0"]
[Round "06"]
[TimeControl "180+1"]
[Date "2022.11.16"]
[WhiteClock "0:00:17"]
[BlackClock "0:00:01"]

1. d4 {[%clk 0:03:00]}  Nf6 {[%clk 0:02:52]} 2. c4 {[%clk 0:03:00]}  c5 {[%clk 0:02:53]} 3. d5 {[%clk 0:02:59]}  b5 {[%clk 0:02:53]} 4. cxb5 {[%clk 0:02:58]}  a6 {[%clk 0:02:53]} 5. b6 {[%clk 0:02:57]}  d6 {[%clk 0:02:54]} 6. Nc3 {[%clk 0:02:56]}  Nbd7 {[%clk 0:02:54]} 7. a4 {[%clk 0:02:24]}  a5 {[%clk 0:02:51]} 8. e4 {[%clk 0:02:20]}  Ba6 {[%clk 0:02:50]} 9. Bb5 {[%clk 0:02:16]}  Bxb5 {[%clk 0:02:45]} 10. b7 {[%clk 0:02:14]}  Rb8 {[%clk 0:02:35]} 11. axb5 {[%clk 0:02:10]}  Rxb7 {[%clk 0:02:29]} 12. Nf3 {[%clk 0:02:09]}  g6 {[%clk 0:02:25]} 13. O-O {[%clk 0:02:07]}  Bg7 {[%clk 0:02:25]} 14. Nd2 {[%clk 0:01:51]}  Ng4 {[%clk 0:02:19]} 15. Qxg4 {[%clk 0:01:44]}  Ne5 {[%clk 0:02:16]} 16. Qe2 {[%clk 0:01:41]}  O-O {[%clk 0:02:13]} 17. Nc4 {[%clk 0:01:41]}  Nxc4 {[%clk 0:02:12]} 18. Qxc4 {[%clk 0:01:42]}  Qb6 {[%clk 0:02:08]} 19. Rb1 {[%clk 0:01:38]}  Rfb8 {[%clk 0:02:03]} 20. Bd2 {[%clk 0:01:39]}  Ra8 {[%clk 0:01:48]} 21. Ra1 {[%clk 0:01:39]}  a4 {[%clk 0:01:38]} 22. Rxa4 {[%clk 0:01:37]}  Rxa4 {[%clk 0:01:37]} 23. Qxa4 {[%clk 0:01:37]}  Bxc3 {[%clk 0:01:37]} 24. Bxc3 {[%clk 0:01:36]}  Qxb5 {[%clk 0:01:37]} 25. Qxb5 {[%clk 0:01:36]}  Rxb5 {[%clk 0:01:38]} 26. Ra1 {[%clk 0:01:36]}  f6 {[%clk 0:01:38]} 27. f3 {[%clk 0:01:31]}  Kf7 {[%clk 0:01:36]} 28. Ra7 {[%clk 0:01:30]}  Rb3 {[%clk 0:01:32]} 29. Kf2 {[%clk 0:01:29]}  h5 {[%clk 0:01:24]} 30. h4 {[%clk 0:01:27]}  g5 {[%clk 0:01:23]} 31. hxg5 {[%clk 0:01:28]}  fxg5 {[%clk 0:01:24]} 32. Ke3 {[%clk 0:01:20]}  Rb8 {[%clk 0:01:23]} 33. Kd3 {[%clk 0:01:18]}  Rg8 {[%clk 0:01:09]} 34. Ra1 {[%clk 0:01:06]}  h4 {[%clk 0:00:23]} 35. Ke3 {[%clk 0:01:02]}  Kg6 {[%clk 0:00:20]} 36. Kf2 {[%clk 0:00:59]}  Kh5 {[%clk 0:00:19]} 37. g3 {[%clk 0:00:55]}  g4 {[%clk 0:00:13]} 38. gxh4 {[%clk 0:00:43]}  gxf3 {[%clk 0:00:13]} 39. Rh1 {[%clk 0:00:40]}  Rf8 {[%clk 0:00:09]} 40. Rh3 {[%clk 0:00:28]}  Kg4 {[%clk 0:00:07]} 41. Rg3+ {[%clk 0:00:27]}  Kxh4 {[%clk 0:00:07]} 42. Rxf3 {[%clk 0:00:28]}  Rg8 {[%clk 0:00:04]} 43. Rf7 {[%clk 0:00:27]}  Re8 {[%clk 0:00:03]} 44. Rxe7 {[%clk 0:00:23]}  Rf8+ {[%clk 0:00:02]} 45. Ke2 {[%clk 0:00:22]}  Kg4 {[%clk 0:00:02]} 46. Re6 {[%clk 0:00:19]}  Kf4 {[%clk 0:00:02]} 47. Kd3 {[%clk 0:00:18]}  Rg8 {[%clk 0:00:01]} 48. Rf6+ {[%clk 0:00:17]} 1-0


[Site "https://www.chess.com"]

[Event "Titled Tuesday Blitz November 15 Early 2022"]
[White "Caruana, Fabiano"]
[Black "Ivic, Velimir"]
[WhiteFideId "2020009"]
[BlackFideId "950122"]
[WhiteElo "2847"]
[BlackElo "2625"]
[Result "1-0"]
[Round "06"]
[TimeControl "180+1"]
[Date "2022.11.15"]
[WhiteClock "0:00:56"]
[BlackClock "0:00:01"]

1. e4 {[%clk 0:03:00]}  c5 {[%clk 0:03:00]} 2. Nf3 {[%clk 0:02:58]}  Nc6 {[%clk 0:03:00]} 3. Bb5 {[%clk 0:02:58]}  e6 {[%clk 0:03:00]} 4. Bxc6 {[%clk 0:02:57]}  bxc6 {[%clk 0:03:01]} 5. b3 {[%clk 0:02:57]}  Ne7 {[%clk 0:02:57]} 6. d3 {[%clk 0:02:54]}  d6 {[%clk 0:02:50]} 7. e5 {[%clk 0:02:45]}  Nf5 {[%clk 0:02:50]} 8. Bb2 {[%clk 0:02:42]}  f6 {[%clk 0:02:47]} 9. exf6 {[%clk 0:02:35]}  gxf6 {[%clk 0:02:47]} 10. Nbd2 {[%clk 0:02:33]}  e5 {[%clk 0:02:45]} 11. Qe2 {[%clk 0:02:31]}  Rg8 {[%clk 0:02:39]} 12. O-O-O {[%clk 0:02:29]}  Be6 {[%clk 0:02:29]} 13. g4 {[%clk 0:02:25]}  Ne7 {[%clk 0:02:09]} 14. h3 {[%clk 0:02:24]}  Nd5 {[%clk 0:02:09]} 15. Kb1 {[%clk 0:02:22]}  Nf4 {[%clk 0:02:06]} 16. Qf1 {[%clk 0:02:19]}  Qe7 {[%clk 0:02:03]} 17. Nh4 {[%clk 0:02:16]}  h5 {[%clk 0:01:57]} 18. f3 {[%clk 0:02:14]}  O-O-O {[%clk 0:01:51]} 19. Ne4 {[%clk 0:02:11]}  d5 {[%clk 0:01:42]} 20. Ng3 {[%clk 0:02:09]}  Qb7 {[%clk 0:01:30]} 21. Ng2 {[%clk 0:02:03]}  Nxg2 {[%clk 0:01:19]} 22. Qxg2 {[%clk 0:02:04]}  hxg4 {[%clk 0:00:52]} 23. fxg4 {[%clk 0:02:02]}  Bh6 {[%clk 0:00:46]} 24. Qf3 {[%clk 0:01:59]}  Bg5 {[%clk 0:00:42]} 25. Nf5 {[%clk 0:01:50]}  Kb8 {[%clk 0:00:37]} 26. Qf2 {[%clk 0:01:39]}  Qb6 {[%clk 0:00:36]} 27. Ba3 {[%clk 0:01:33]}  c4 {[%clk 0:00:35]} 28. Bc5 {[%clk 0:01:30]}  Qa6 {[%clk 0:00:31]} 29. dxc4 {[%clk 0:01:17]}  dxc4 {[%clk 0:00:32]} 30. Nd6 {[%clk 0:01:07]}  cxb3 {[%clk 0:00:29]} 31. axb3 {[%clk 0:01:08]}  Rd7 {[%clk 0:00:15]} 32. Ne4 {[%clk 0:01:04]}  Bd5 {[%clk 0:00:08]} 33. Nxg5 {[%clk 0:01:03]}  fxg5 {[%clk 0:00:08]} 34. Rhe1 {[%clk 0:01:02]}  Ka8 {[%clk 0:00:05]} 35. Kb2 {[%clk 0:00:57]}  Rb8 {[%clk 0:00:05]} 36. Ra1 {[%clk 0:00:56]}  Qb6 {[%clk 0:00:01]} 1-0


[Site "https://www.chess.com"]

[Event "Titled Tuesday Blitz November 15 Early 2022"]
[White "Chernomordik, Pavel"]
[Black "Adithya A Chullikkad"]
[WhiteFideId "2804530"]
[BlackFideId "45078734"]
[WhiteElo "2192"]
[BlackElo "2106"]
[Result "1-0"]
[Round "06"]
[TimeControl "180+1"]
[Date "2022.11.16"]
[WhiteClock "0:02:17"]
[BlackClock "0:02:28"]

1. e4 {[%clk 0:03:00]}  c6 {[%clk 0:02:56]} 2. Nc3 {[%clk 0:03:00]}  d5 {[%clk 0:02:56]} 3. Nf3 {[%clk 0:03:00]}  dxe4 {[%clk 0:02:56]} 4. Nxe4 {[%clk 0:03:00]}  g6 {[%clk 0:02:57]} 5. h4 {[%clk 0:02:57]}  Bg7 {[%clk 0:02:56]} 6. h5 {[%clk 0:02:56]}  Nf6 {[%clk 0:02:56]} 7. h6 {[%clk 0:02:53]}  Bf8 {[%clk 0:02:56]} 8. Ng3 {[%clk 0:02:43]}  Ng4 {[%clk 0:02:45]} 9. d4 {[%clk 0:02:42]}  Nd7 {[%clk 0:02:43]} 10. Bc4 {[%clk 0:02:37]}  Ndf6 {[%clk 0:02:42]} 11. Qe2 {[%clk 0:02:31]}  e6 {[%clk 0:02:40]} 12. Bg5 {[%clk 0:02:29]}  Be7 {[%clk 0:02:36]} 13. O-O-O {[%clk 0:02:28]}  Bd7 {[%clk 0:02:35]} 14. Ne5 {[%clk 0:02:26]}  Nxe5 {[%clk 0:02:32]} 15. Qxe5 {[%clk 0:02:18]}  Ng4 {[%clk 0:02:28]} 16. Qxh8+ {[%clk 0:02:17]} 1-0


[Site "https://www.chess.com"]